fUSD/lending_fUSD_20251211
["ID","MTS","AMOUNT","RATE_DAILY","PERIOD"]
[398236442,1765443074099,500.0,0.00015799,2]
[398236443,1765443086240,500.0,0.00015799,2]
[398236444,1765443086450,393.1078,0.000158,2]
[398236445,1765443087948,500.0,0.00015799,2]
[398236446,1765443088824,500.0,0.00015799,2]
[398236447,1765443088932,487.13230232,0.00015799,2]
[398236493,1765443135853,507.9,0.00015899,2]
[398236500,1765443144256,5866.86989768,0.000158,2]
[398236501,1765443144278,10000.01,0.000158,2]
[398236502,1765443144304,10000.01,0.000158,2]
[398236503,1765443144328,7578.15140232,0.000158,2]
[398236506,1765443157969,-150.48027205,0.00015962,2]
[398236507,1765443157991,-76.90806737,0.00015987,2]
[398236508,1765443162839,1000.0,0.000158,2]
[398236509,1765443172867,1421.85859768,0.000157,2]
[398236510,1765443172891,10000.01,0.000157,2]
[398236511,1765443172916,10000.01,0.000157,2]
[398236512,1765443172939,10000.01,0.000157,2]
[398236513,1765443172962,10000.01,0.000157,2]
[398236514,1765443172985,10000.01,0.000157,2]
[398236515,1765443173008,10000.01,0.000157,2]
[398236516,1765443173032,10000.01,0.000157,2]
[398236517,1765443173056,10000.01,0.000157,2]
[398236518,1765443173080,10000.01,0.000157,2]
[398236519,1765443173104,10000.01,0.000157,2]
[398236520,1765443173127,10000.01,0.000157,2]
[398236521,1765443173150,10000.01,0.000157,2]
[398236522,1765443173174,10000.01,0.000157,2]
[398236523,1765443173199,10000.01,0.000157,2]
[398236524,1765443174232,-499.20056182,0.000157,2]
[398236535,1765443188361,-9756.5256,0.000157,2]
[398236536,1765443188474,-10000.01,0.000157,2]
[398236537,1765443188598,-10000.01,0.000157,2]
[398236538,1765443188736,-10000.01,0.000157,2]
[398236539,1765443188884,-10000.01,0.000157,2]
[398236540,1765443188981,-10000.01,0.000157,2]
[398236541,1765443189102,-10000.01,0.000157,2]
[398236542,1765443189305,-10000.01,0.000157,2]
[398236543,1765443189501,-10000.01,0.000157,2]
[398236544,1765443189900,-10000.01,0.000157,2]
[398236546,1765443190246,-10000.01,0.000157,2]
[398236547,1765443190568,-10000.01,0.000157,2]
[398236549,1765443194080,-10000.01,0.000157,2]
[398236550,1765443194187,-10000.01,0.000157,2]
[398236551,1765443194298,-10000.01,0.000157,2]
[398236552,1765443194434,-10000.01,0.000157,2]
[398236553,1765443194626,-10000.01,0.000157,2]
[398236554,1765443200340,-10000.01,0.000157,2]
[398236555,1765443200468,-10000.01,0.000157,2]
[398236556,1765443200595,-10000.01,0.000157,2]
[398236557,1765443200698,-10000.01,0.000157,2]
[398236558,1765443200839,-10000.01,0.000157,2]
[398236559,1765443201074,-10000.01,0.000157,2]
[398236560,1765443201198,-10000.01,0.000157,2]
[398236561,1765443201309,-10000.01,0.000157,2]
[398236562,1765443201433,-10000.01,0.000157,2]
[398236563,1765443201572,-10000.01,0.000157,2]
[398236564,1765443201866,-10000.01,0.000157,2]
[398236565,1765443202272,-10000.01,0.000157,2]
[398236566,1765443443642,-173.52947433,0.000155,2]
[398236567,1765443443664,-98.6231208,0.0001555,2]
[398236568,1765443607996,-66.70821012,0.0001555,2]
[398236569,1765443608021,-145.95041038,0.0001555,2]
[398236570,1765443610176,-274.22299071,0.0001555,2]
[398236571,1765443611793,-79.82659891,0.0001555,2]
[398236572,1765443611819,-168.43411155,0.0001555,2]
[398236573,1765443611845,-91.25370334,0.0001555,2]
[398236574,1765443773175,-436.25088796,0.00015354,2]
[398236575,1765443774984,-426.50361061,0.00015354,2]
[398236576,1765443777176,-164.14757109,0.00015354,2]
[398236577,1765443779296,-416.75510579,0.00015354,2]
[398236578,1765443781442,-214.94254974,0.00015354,2]
[398236579,1765443782251,250.0,0.00015,2]
[398236580,1765443783081,250.0,0.00015,2]
[398236581,1765443786320,-297.14930349,0.00015354,2]
[398236582,1765443787817,-272.05498767,0.00015354,2]
[398236583,1765443789283,-254.45923836,0.00015354,2]
[398236584,1765443792093,-260.40417082,0.00015354,2]
[398236592,1765443833089,-383.14347047,0.00015245,3]
[398236593,1765443835080,-266.20136899,0.00015245,3]
[398236594,1765443839095,-274.18489119,0.00015245,3]
[398236595,1765443842976,-75.47026935,0.00015245,3]
[398236596,1765443842998,-18.64257447,0.00015354,2]
[398236597,1765443843020,-56.96336616,0.0001555,2]
[398236598,1765443844936,-300.0,0.00015299,2]
[398236599,1765443844960,-23.80611174,0.00015453,2]
[398236600,1765443848762,-195.0,0.00015376,2]
[398236601,1765443848786,-50.1012613,0.00015453,2]
[398236602,1765443850382,-159.70482018,0.00015453,2]
[398236603,1765443853750,-66.38780678,0.00015453,2]
[398236604,1765443853772,-101.68607247,0.00015487,2]
[398236605,1765443908050,-93.31392753,0.00015487,2]
[398236606,1765443908075,-234.14389067,0.00015518,2]
[398236607,1765443923017,-65.85610933,0.00015518,2]
[398236608,1765443923047,-195.0,0.00015518,2]
[398236609,1765443923076,-64.14076252,0.0001555,2]
[398236631,1765443983036,-67.64216798,0.0001555,2]
[398236632,1765443983060,-113.68386002,0.00015553,2]
[398236634,1765444028068,-452.51228467,0.000155,2]
[398236635,1765444031887,-230.66766501,0.000155,2]
[398236636,1765444034600,-250.0,0.000155,2]
[398236637,1765444038044,-226.94530719,0.000155,2]
[398236638,1765444039614,-192.76743588,0.000155,2]
[398236639,1765444041811,-34.85854198,0.000155,2]
[398236640,1765444041832,-158.92211179,0.00015526,2]
[398236641,1765444043991,-91.07788821,0.00015526,2]
[398236642,1765444044017,-84.71434776,0.00015553,2]
[398236711,1765444207984,-101.60179222,0.00015553,2]
[398236712,1765444208006,-232.08296401,0.00015553,2]
[398236713,1765444222983,-230.28962161,0.00015553,2]
[398236717,1765444231373,-69.71037839,0.00015553,2]
[398236718,1765444231383,-47.91703599,0.00015553,2]
[398236719,1765444231398,-195.0,0.00015558,2]
[398236720,1765444231407,-509.31129602,0.00015599,2]
[398236721,1765444231418,-534.03607177,0.00015599,2]
[398236722,1765444231434,-156.65263221,0.00015599,2]
[398236723,1765444231444,-300.0,0.00015599,2]
[398236724,1765444231454,-300.0,0.00015599,2]
[398236725,1765444231464,-1200.0,0.00015599,2]
[398236726,1765444231473,-300.0,0.00015599,2]
[398236727,1765444231483,-8754.17951633,0.000156,2]
[398236728,1765444231494,-24690.86178367,0.000156,2]
[398236729,1765444231504,-21147.64198918,0.000156,2]
[398236730,1765444231514,-3480.30312943,0.000156,2]
[398236731,1765444231525,-707.71564722,0.000156,2]
[398236732,1765444231536,-625.6194234,0.000156,2]
[398236733,1765444231547,-955.4655682,0.000156,2]
[398236734,1765444231559,-878.94188727,0.000156,2]
[398236735,1765444231571,-31.79804448,0.000156,2]
[398236736,1765444231580,-2183.58674186,0.000156,2]
[398236738,1765444231592,-696.11200438,0.000156,2]
[398236753,1765444237752,-9848.29291115,0.000156,2]
[398236754,1765444237763,-151.0,0.00015691,2]
[398236755,1765444237775,-151.0,0.00015691,2]
[398236756,1765444237785,-151.0,0.00015691,2]
[398236757,1765444237796,-151.0,0.00015691,2]
[398236758,1765444237806,-151.0,0.00015691,2]
[398236759,1765444237816,-151.0,0.00015691,2]
[398236760,1765444237826,-151.0,0.00015691,2]
[398236761,1765444237836,-151.0,0.00015691,2]
[398236762,1765444237847,-151.0,0.00015691,2]
[398236763,1765444237857,-151.0,0.00015691,2]
[398236764,1765444237868,-231.76701204,0.00015691,2]
[398236765,1765444237877,-500.0,0.00015699,2]
[398236766,1765444237887,-500.0,0.00015699,2]
[398236767,1765444237896,-500.0,0.00015699,2]
[398236768,1765444237906,-500.0,0.00015699,2]
[398236769,1765444237916,-524.26192636,0.00015699,2]
[398236770,1765444237927,-1149.96,0.00015699,2]
[398236771,1765444237937,-167.0,0.000157,2]
[398236772,1765444237947,-4042.13957973,0.000157,2]
[398236773,1765444237957,-898.08433789,0.000157,2]
[398236774,1765444237967,-279.50214594,0.000157,2]
[398236775,1765444237977,-1000.0,0.000158,2]
[398236776,1765444237986,-1000.0,0.00015905,2]
[398236777,1765444237996,-74.57193263,0.00015987,2]
[398236778,1765444238006,-152.26,0.00015987,2]
[398236779,1765444238018,-150.66,0.00015987,2]
[398236780,1765444238030,-151.77,0.00015987,2]
[398236781,1765444238040,-151.16,0.00015987,2]
[398236782,1765444238050,-150.31,0.00015987,2]
[398236783,1765444238062,-150.89,0.00016062,2]
[398236784,1765444238072,-304.0,0.00016232,2]
[398236785,1765444238081,-304.0,0.00016346,2]
[398236786,1765444238092,-304.0,0.00016424,2]
[398236787,1765444238102,-662.84,0.00016438,2]
[398236788,1765444238112,-8930.31,0.00016438,2]
[398236789,1765444238122,-304.0,0.00016471,2]
[398236790,1765444238132,-304.0,0.00016495,2]
[398236791,1765444238142,-662.84,0.00016712,2]
[398236792,1765444238152,-510.0,0.00016722,2]
[398236793,1765444238162,-415.364404,0.00016736,2]
[398236794,1765444238172,-304.0,0.00016768,2]
[398236795,1765444238182,-304.0,0.0001677,2]
[398236796,1765444238192,-304.0,0.00016861,2]
[398236798,1765444238203,-304.0,0.00016897,2]
[398236800,1765444238213,-167.0,0.000169,2]
[398236802,1765444238222,-304.0,0.00016981,2]
[398236804,1765444238233,-304.0,0.00016981,2]
[398236806,1765444238243,-662.84,0.00016986,2]
[398236807,1765444238254,-250.0,0.00017,2]
[398236809,1765444238264,-195.0,0.00017035,2]
[398236811,1765444238275,-250.0,0.0001705,2]
[398236813,1765444238285,-304.0,0.00017051,2]
[398236815,1765444238296,-1436.0,0.00017062,2]
[398236817,1765444238306,-420.0,0.00017062,2]
[398236819,1765444238317,-420.0,0.00017062,2]
[398236820,1765444238327,-304.0,0.00017075,2]
[398236821,1765444238337,-195.0,0.00017105,2]
[398236822,1765444238348,-300.0,0.00017105,2]
[398236823,1765444238358,-250.0,0.00017108,2]
[398236824,1765444238369,-300.0,0.00017108,2]
[398236825,1765444238379,-250.0,0.00017108,2]
[398236826,1765444238388,-195.0,0.00017108,2]
[398236827,1765444238398,-300.0,0.00017108,2]
[398236828,1765444238408,-195.0,0.00017108,2]
[398236829,1765444238418,-300.0,0.00017108,2]
[398236830,1765444238427,-1680.0,0.00017148,2]
[398236831,1765444238437,-250.0,0.00017156,2]
[398236832,1765444238447,-304.0,0.0001722,2]
[398236833,1765444238457,-150.0,0.00017247,2]
[398236834,1765444238467,-150.0,0.00017247,2]
[398236835,1765444238476,-150.0,0.00017247,2]
[398236836,1765444238486,-155.07428394,0.00017247,2]
[398236837,1765444238496,-150.0,0.00017247,2]
[398236838,1765444238506,-160.78025537,0.00017247,2]
[398236839,1765444238516,-228.81809239,0.00017247,2]
[398236840,1765444238526,-150.0,0.00017247,2]
[398236841,1765444238536,-150.0,0.00017247,2]
[398236842,1765444238546,-500.0,0.00017247,2]
[398236843,1765444238556,-151.37391218,0.00017247,2]
[398236844,1765444238566,-150.0,0.00017247,2]
[398236845,1765444238575,-150.0,0.00017247,2]
[398236846,1765444238585,-150.0,0.00017247,2]
[398236847,1765444238595,-150.0,0.00017247,2]
[398236848,1765444238605,-170.21872884,0.00017247,2]
[398236849,1765444238615,-150.0,0.00017247,2]
[398236850,1765444238625,-150.0,0.00017247,2]
[398236851,1765444238636,-662.84,0.0001726,2]
[398236852,1765444238647,-304.0,0.00017295,2]
[398236853,1765444238657,-10559.74,0.00017295,2]
[398236854,1765444238668,-304.0,0.00017325,2]
[398236855,1765444238678,-150.08427247,0.00017384,2]
[398236856,1765444238688,-150.0,0.00017384,2]
[398236857,1765444238699,-150.0,0.00017384,2]
[398236858,1765444238710,-150.0,0.00017384,2]
[398236859,1765444238720,-150.0,0.00017384,2]
[398236860,1765444238730,-614.51278261,0.00017384,2]
[398236861,1765444238741,-227.8103482,0.00017384,2]
[398236862,1765444238751,-150.60890833,0.00017384,2]
[398236863,1765444238761,-152.57211274,0.00017384,2]
[398236864,1765444238771,-150.0,0.00017384,2]
[398236865,1765444238781,-150.0,0.00017384,2]
[398236866,1765444238790,-150.0,0.00017384,2]
[398236867,1765444238801,-200.0,0.0001742,2]
[398236868,1765444238811,-304.0,0.00017422,2]
[398236869,1765444238822,-500.0,0.00017432,2]
[398236870,1765444238832,-304.0,0.00017445,2]
[398236871,1765444238842,-304.0,0.00017516,2]
[398236872,1765444238854,-150.0,0.00017521,2]
[398236873,1765444238863,-150.0,0.00017521,2]
[398236874,1765444238874,-200.0,0.00017521,2]
[398236875,1765444238884,-150.0,0.00017521,2]
[398236876,1765444238895,-261.90360583,0.00017521,2]
[398236877,1765444238905,-200.0,0.00017521,2]
[398236878,1765444238915,-662.84,0.00017534,2]
[398236879,1765444238925,-304.0,0.00017562,2]
[398236880,1765444238935,-304.0,0.00017579,2]
[398236881,1765444238946,-300.0,0.0001759,2]
[398236882,1765444238956,-150.0,0.00017658,2]
[398236883,1765444238966,-278.13950023,0.00017658,2]
[398236884,1765444238976,-157.96168769,0.00017658,2]
[398236885,1765444238986,-304.0,0.00017663,2]
[398236886,1765444238996,-304.0,0.00017678,2]
[398236887,1765444239006,-386.72,0.00017742,2]
[398236888,1765444239018,-150.13031673,0.00017795,2]
[398236889,1765444239031,-662.84,0.00017808,2]
[398236891,1765444239212,-500.0,0.00017846,2]
[398236892,1765444239266,-500.0,0.00017846,2]
[398236893,1765444239276,-500.0,0.00017846,2]
[398236894,1765444239286,-500.0,0.00017846,2]
[398236895,1765444239295,-500.0,0.00017846,2]
[398236896,1765444239304,-500.0,0.00017846,2]
[398236897,1765444239314,-229.69690144,0.00017846,2]
[398236898,1765444239323,-500.0,0.00017846,2]
[398236899,1765444239333,-417.44387738,0.00017846,2]
[398236900,1765444239343,-500.0,0.00017846,2]
[398236901,1765444239353,-500.0,0.00017846,2]
[398236902,1765444239363,-500.0,0.00017846,2]
[398236903,1765444239372,-500.0,0.00017846,2]
[398236904,1765444239383,-500.0,0.00017846,2]
[398236905,1765444239393,-500.0,0.00017846,2]
[398236906,1765444239404,-500.0,0.00017846,2]
[398236907,1765444239413,-500.0,0.00017846,2]
[398236908,1765444239423,-500.0,0.00017846,2]
[398236909,1765444239431,-500.0,0.00017846,2]
[398236910,1765444239441,-500.0,0.00017846,2]
[398236912,1765444239450,-500.0,0.00017846,2]
[398236913,1765444239459,-500.0,0.00017846,2]
[398236914,1765444239469,-500.0,0.00017846,2]
[398236916,1765444239478,-500.0,0.00017846,2]
[398236918,1765444239488,-500.0,0.00017846,2]
[398236919,1765444239497,-500.0,0.00017846,2]
[398236920,1765444239506,-500.0,0.00017846,2]
[398236921,1765444239516,-500.0,0.00017846,2]
[398236922,1765444239525,-500.0,0.00017846,2]
[398236923,1765444239534,-348.81074647,0.00017846,2]
[398236924,1765444239543,-500.0,0.00017846,2]
[398236925,1765444239553,-500.0,0.00017846,2]
[398236926,1765444239563,-500.0,0.00017846,2]
[398236927,1765444239572,-500.0,0.00017846,2]
[398236928,1765444239582,-6983.98,0.00017847,2]
[398236929,1765444239591,-866.0,0.00017923,2]
[398236930,1765444239600,-662.84,0.00018082,2]
[398236931,1765444239609,-170.31,0.000182,2]
[398236932,1765444239619,-662.87,0.00018356,2]
[398236933,1765444239629,-194.76336841,0.00018464,2]
[398236934,1765444239638,-12727.99165739,0.00018499,2]
[398236935,1765444239648,-21147.64198913,0.00018511,2]
[398236936,1765444239657,-310.0,0.00018662,2]
[398236937,1765444239667,-587.0,0.00018662,2]
[398236938,1765444239676,-500.0,0.000188,2]
[398236939,1765444239686,-500.0,0.000188,2]
[398236940,1765444239695,-151.1298291,0.000188,2]
[398236941,1765444239705,-500.0,0.000188,2]
[398236942,1765444239714,-500.0,0.000188,2]
[398236943,1765444239724,-500.0,0.000188,2]
[398236944,1765444239733,-500.0,0.000188,2]
[398236945,1765444239743,-500.0,0.000188,2]
[398236946,1765444239752,-500.0,0.000188,2]
[398236947,1765444239762,-500.0,0.000188,2]
[398236948,1765444239771,-2351.0,0.00018851,2]
[398236949,1765444239781,-597.4,0.00018952,2]
[398236950,1765444239790,-311.1,0.00018959,2]
[398236951,1765444239800,-300.0,0.00019,2]
[398236952,1765444239810,-224.36057903,0.00019082,2]
[398236953,1765444239819,-13629.62,0.00019118,2]
[398236954,1765444239829,-1000.0,0.00019348,2]
[398236955,1765444239839,-503.28665112,0.00019348,2]
[398236956,1765444239848,-479.86517479,0.00019348,2]
[398236957,1765444239858,-191.15032062,0.00019348,2]
[398236958,1765444239867,-501.81670451,0.00019348,2]
[398236959,1765444239877,-500.0,0.00019348,2]
[398236960,1765444239887,-166.66,0.00019434,2]
[398236961,1765444239896,-1500.0,0.00019536,2]
[398236962,1765444239906,-166.66,0.00019844,2]
[398236963,1765444239915,-1500.0,0.00019896,2]
[398236964,1765444239924,-166.66,0.00020253,2]
[398236965,1765444239934,-322.6107,0.00020328,2]
[398236966,1765444239943,-823.0,0.00020412,2]
[398236967,1765444239953,-1500.0,0.00020444,2]
[398236968,1765444239962,-166.66,0.00020662,2]
[398236969,1765444239971,-3292.0,0.00020722,2]
[398236970,1765444239980,-166.66,0.00021071,2]
[398236971,1765444239990,-12727.99165739,0.00021399,2]
[398236972,1765444239999,-480.8162296,0.00021399,2]
[398236973,1765444240008,-21147.64198913,0.00021423,2]
[398236974,1765444240019,-166.66,0.0002148,2]
[398236975,1765444240030,-334.5472959,0.00021697,2]
[398236976,1765444240039,-1152.0,0.00022326,2]
[398236977,1765444240049,-8085.58,0.00022562,2]
[398236978,1765444240058,-150.99,0.00022562,2]
[398236979,1765444240069,-4296.5,0.00022562,2]
[398236980,1765444240078,-9999.99,0.00022562,2]
[398236981,1765444240088,-150.99,0.00022562,2]
[398236982,1765444240099,-9999.99,0.00022562,2]
[398236983,1765444240108,-999.99,0.00022562,2]
[398236984,1765444240117,-299.99,0.00022562,7]
[398236985,1765444240127,-4609.0,0.0002278,2]
[398236986,1765444240136,-346.92554585,0.00023066,2]
[398236987,1765444240145,-12727.99165739,0.00024298,2]
[398236988,1765444240155,-21147.64198913,0.00024334,2]
[398236989,1765444240164,-204.0,0.0002442,2]
[398236991,1765444240173,-359.76179104,0.00024435,2]
[398236993,1765444240182,-549.29,0.00024658,30]
[398236995,1765444240191,-3078.5607126,0.000248,3]
[398236997,1765444240201,-884.0,0.00025042,2]
[398236998,1765444240210,-373.07297731,0.00025804,2]
[398236999,1765444240219,-465.05038579,0.00027173,2]
[398237000,1765444240228,-12727.99165739,0.00027198,2]
[398237001,1765444240238,-21147.64198913,0.00027246,2]
[398237002,1765444240247,-1149.96,0.00027247,2]
[398237003,1765444240256,-1813.07710402,0.00027661,3]
[398237004,1765444240265,-8930.31,0.00027671,2]
[398237005,1765444240275,-2000.0,0.000285,2]
[398237006,1765444240284,-500.0,0.00028575,2]
[398237007,1765444240294,-436.02605526,0.00028883,2]
[398237008,1765444240303,-302.79472894,0.00029407,2]
[398237009,1765444240312,-549.29,0.00029492,30]
[398237010,1765444240322,-12727.99165739,0.00030097,2]
[398237011,1765444240332,-1813.07710402,0.00030147,3]
[398237012,1765444240341,-21147.64198913,0.00030157,2]
[398237013,1765444240351,-645.41641666,0.00030159,60]
[398237014,1765444240360,-515.43415012,0.00030159,60]
[398237015,1765444240369,-500.0,0.00030159,60]
[398237016,1765444240378,-504.71811745,0.00030159,60]
[398237017,1765444240387,-9065.3855201,0.0003056,3]
[398237019,1765444240396,-220.58547383,0.00030569,15]
[398237020,1765444240406,-101048.06,0.0003057,2]
[398237021,1765444240415,-254.54,0.00030634,14]
[398237022,1765444240424,-203.26,0.00030917,14]
[398237023,1765444240433,-2804.0,0.000313,2]
[398237024,1765444240443,-10000.0,0.00031507,120]
[398237025,1765444240452,-9585.0,0.00031509,5]
[398237026,1765444240461,-500.0,0.00031644,2]
[398237027,1765444240471,-1239.27,0.000317,2]
[398237028,1765444240480,-1000.0,0.00031912,2]
[398237029,1765444240489,-1813.07710402,0.0003209,3]
[398237030,1765444240498,-5524.0,0.000321,3]
[398237031,1765444240508,-1000.0,0.000322,2]
[398237032,1765444240518,-5524.0,0.000328,5]
[398237033,1765444240527,-12727.99165739,0.00032997,2]
[398237034,1765444240536,-1813.07710402,0.00033059,3]
[398237035,1765444240545,-21147.64198913,0.00033069,2]
[398237036,1765444240554,-549.29,0.00034327,30]
[398237037,1765444240563,-176.04069608,0.00034359,38]
[398237038,1765444240573,-2065.536,0.00034359,38]
[398237039,1765444240582,-3626.15420804,0.00034422,3]
[398237040,1765444240591,-160.824,0.00034432,2]
[398237041,1765444240601,-1606.0,0.00034432,2]
[398237042,1765444240610,-3449.0,0.00034432,2]
[398237043,1765444240619,-612.729,0.00034432,2]
[398237044,1765444240629,-1260.0,0.00034432,2]
[398237045,1765444240639,-684.0,0.00034432,2]
[398237046,1765444240648,-1195.0,0.00034432,2]
[398237047,1765444240658,-910.0,0.00034432,2]
[398237048,1765444240667,-253.0,0.00034432,2]
[398237049,1765444240677,-563.0,0.00034432,2]
[398237050,1765444240686,-4764.0,0.00034432,2]
[398237051,1765444240696,-214.963,0.00034812,2]
[398237052,1765444240705,-210.671,0.00034812,2]
[398237053,1765444240714,-221.097,0.00034812,2]
[398237054,1765444240723,-193.419,0.00034814,2]
[398237055,1765444240733,-154.969,0.00034814,2]
[398237056,1765444240742,-190.023,0.00034814,2]
[398237057,1765444240751,-250.0,0.00034814,2]
[398237058,1765444240760,-211.117,0.00034814,2]
[398237059,1765444240770,-250.0,0.00034814,2]
[398237060,1765444240779,-225.045,0.00034814,2]
[398237061,1765444240788,-164.0,0.00034814,2]
[398237062,1765444240797,-12727.99165739,0.00035896,2]
[398237063,1765444240806,-1000.0,0.000359,2]
[398237064,1765444240816,-1813.07710402,0.0003597,3]
[398237065,1765444240825,-21147.64198913,0.0003598,2]
[398237066,1765444240835,-1072.11497817,0.00036021,5]
[398237067,1765444240844,-500.0,0.00036027,2]
[398237068,1765444240853,-3403.57,0.00036162,2]
[398237069,1765444240862,-3626.15420804,0.00036794,4]
[398237070,1765444240871,-1149.96,0.00036803,60]
[398237071,1765444240880,-500.0,0.00036804,30]
[398237072,1765444240889,-500.0,0.00036804,30]
[398237073,1765444240898,-572.49907613,0.00036804,30]
[398237074,1765444240908,-510.79850095,0.00036804,30]
[398237075,1765444240916,-501.76348649,0.00036804,30]
[398237076,1765444240925,-1400.0,0.00036804,30]
[398237077,1765444240935,-1400.0,0.00036804,30]
[398237078,1765444240944,-1400.0,0.00036804,30]
[398237079,1765444240954,-1400.0,0.00036804,30]
[398237080,1765444240962,-1400.0,0.00036804,30]
[398237081,1765444240971,-1400.0,0.00036804,30]
[398237082,1765444240980,-1400.0,0.00036804,30]
[398237083,1765444240990,-1400.0,0.00036804,30]
[398237084,1765444241001,-1400.0,0.00036804,30]
[398237085,1765444241010,-1400.0,0.00036804,30]
[398237086,1765444241023,-1400.0,0.00036804,30]
[398237087,1765444241032,-1400.0,0.00036804,30]
[398237088,1765444241041,-1400.0,0.00036804,30]
[398237089,1765444241051,-1400.0,0.00036804,30]
[398237090,1765444241061,-1400.0,0.00036804,30]
[398237091,1765444241071,-1400.0,0.00036804,30]
[398237092,1765444241081,-170.65032945,0.00036804,30]
[398237093,1765444241091,-1400.0,0.00036804,30]
[398237094,1765444241103,-1400.0,0.00036804,30]
[398237095,1765444241112,-1400.0,0.00036804,30]
[398237096,1765444241122,-1400.0,0.00036804,30]
[398237097,1765444241131,-1400.0,0.00036804,30]
[398237098,1765444241141,-1400.0,0.00036804,30]
[398237099,1765444241150,-1400.0,0.00036804,30]
[398237100,1765444241159,-1400.0,0.00036804,30]
[398237101,1765444241169,-1400.0,0.00036804,30]
[398237102,1765444241179,-1400.0,0.00036804,30]
[398237103,1765444241189,-1400.0,0.00036804,30]
[398237104,1765444241198,-2177.21694583,0.00036804,30]
[398237105,1765444241208,-1000.0,0.00036887,2]
[398237106,1765444241217,-150.0,0.00036888,7]
[398237107,1765444241226,-150.0,0.00036888,7]
[398237108,1765444241235,-150.0,0.00036888,7]
[398237109,1765444241244,-150.0,0.00036888,7]
[398237110,1765444241254,-150.0,0.00036888,7]
[398237111,1765444241262,-150.0,0.00036888,7]
[398237112,1765444241272,-150.0,0.00036888,7]
[398237113,1765444241281,-150.0,0.00036888,7]
[398237114,1765444241290,-150.0,0.00036888,7]
[398237115,1765444241299,-150.0,0.00036888,7]
[398237116,1765444241309,-466.13708215,0.00036939,5]
[398237117,1765444241318,-1813.07710402,0.00036976,4]
[398237118,1765444241327,-7767.55,0.00036986,30]
[398237119,1765444241337,-167.0,0.00037,2]
[398237120,1765444241346,-170.96,0.00037064,2]
[398237121,1765444241355,-867.21,0.00037091,5]
[398237122,1765444241364,-150.0,0.0003726,7]
[398237123,1765444241374,-150.0,0.00037343,7]
[398237124,1765444241383,-150.0,0.00037343,7]
[398237125,1765444241392,-150.0,0.000374,7]
[398237126,1765444241401,-150.0,0.000374,7]
[398237127,1765444241410,-500.0,0.00037405,30]
[398237128,1765444241419,-500.0,0.00037405,30]
[398237129,1765444241428,-463.61392116,0.00037405,30]
[398237130,1765444241438,-1813.07710402,0.00037422,4]
[398237131,1765444241448,-1606.0,0.00037432,2]
[398237132,1765444241457,-3449.0,0.00037432,2]
[398237133,1765444241467,-611.0,0.00037432,2]
[398237134,1765444241476,-1260.0,0.00037432,2]
[398237135,1765444241487,-684.0,0.00037432,2]
[398237136,1765444241496,-253.0,0.00037432,2]
[398237137,1765444241505,-563.0,0.00037432,2]
[398237138,1765444241516,-4764.0,0.00037432,2]
[398237139,1765444241525,-500.0,0.00037576,14]
[398237140,1765444241534,-866.5,0.00037578,30]
[398237141,1765444241543,-150.0,0.00037633,7]